bitfinex-derivatives/quotes_ETHF0:USTF0_20260314
["timestamp","ask_amount","ask_price","bid_price","bid_amount"]
[1773450007865,0.00413375,2085.9,2085.1,0.58912198]
[1773450008271,0.01999405,2085.9,2085.1,0.58912198]
[1773450010068,0.00413375,2085.9,2085.1,0.58912198]
[1773450036196,0.05759817,2086.5,2085.5,0.56408348]
[1773450036583,0.05759817,2086.5,2085.7,0.56408348]
[1773450037292,0.06224083,2086.5,2085.7,0.56408348]
[1773450039193,0.00464266,2086.5,2085.7,0.56408348]
[1773450039595,0.00464266,2086.5,2085.8,0.56400118]
[1773450041986,0.06344031,2087.3,2086.5,0.56116241]
[1773450042288,0.59017336,2087.7,2086.5,0.56116241]
[1773450042289,0.06344031,2087.5,2086.5,0.56116241]
[1773450042893,0.06810265,2087.5,2086.5,0.56724809]
[1773450043694,0.06810265,2087.5,2086.6,0.56038006]
[1773450048093,0.05676165,2087.9,2086.8,0.56622387]
[1773450049291,0.06156365,2087.9,2086.8,0.56622387]
[1773450051799,0.06156365,2087.9,2087.0,0.58170605]
[1773450052000,0.004802,2087.9,2087.0,0.58170605]
[1773450052401,0.03288846,2087.9,2087.0,0.58170605]
[1773450052796,0.02824115,2087.7,2086.6,0.58170605]
[1773450057703,0.00887456,2087.6,2086.6,0.58170605]
[1773450063214,3.799,2087.5,2086.6,0.58170605]
[1773450063414,3.80183632,2087.5,2086.6,0.58170605]
[1773450064819,1.50674365,2087.3,2086.6,0.58170605]
[1773450065509,1.50674365,2087.1,2086.5,0.00608568]
[1773450066015,1.50674365,2086.9,2086.5,0.00608568]
[1773450066310,1.50674365,2086.9,2086.2,0.59332987]
[1773450066615,1.50674365,2087.1,2086.2,0.59332987]
[1773450067116,1.50674365,2087.1,2086.2,0.5992096]
[1773450069714,7.2469314,2087.1,2086.2,0.5992096]
[1773450070724,5.74018775,2087.1,2086.2,0.5992096]
[1773450071020,0.23951,2087.2,2086.3,0.60067936]
[1773450071212,0.23951,2087.2,2086.5,0.60067936]
[1773450071619,5.98097341,2087.2,2086.5,0.60067936]
[1773450072121,3.99091473,2087.6,2086.5,0.60067936]
[1773450072322,9.73482534,2087.6,2086.5,0.60067936]
[1773450073018,5.74391061,2087.5,2086.7,0.60024174]
[1773450073219,4.23037473,2087.8,2086.7,0.60024174]
[1773450073523,9.98131642,2087.8,2086.7,0.60024174]
[1773450078232,3.799,2087.7,2086.7,0.60024174]
[1773450078529,5.75094169,2087.6,2086.7,0.60024174]
[1773450081331,9.54994169,2087.6,2086.7,0.60024174]
[1773450081532,3.799,2087.6,2086.9,0.60065639]
[1773450082333,5.75630978,2087.5,2086.9,0.60065639]
[1773450082734,3.799,2087.6,2087.1,0.6015463]
[1773450084332,3.799,2087.7,2087.1,0.6015463]
[1773450084534,5.75578525,2087.6,2087.1,0.6015463]
[1773450089040,0.23946,2087.8,2087.1,0.6015463]
[1773450089335,5.99429284,2087.8,2087.1,0.6015463]
[1773450093240,5.75483284,2087.8,2087.1,0.6015463]
[1773450093635,5.75483284,2087.8,2087.0,0.60186396]
[1773450093839,0.004802,2087.9,2087.5,0.60196038]
[1773450094039,0.004802,2087.9,2087.3,0.60196038]
[1773450096638,6.281802,2087.9,2087.3,0.60196038]
[1773450097243,0.004802,2087.9,2087.3,0.60196038]
[1773450097443,6.277,2087.8,2087.3,0.60196038]
[1773450099342,0.004802,2087.9,2087.3,0.60196038]
[1773450099543,6.277,2087.7,2087.3,0.60196038]
[1773450101749,0.004802,2087.9,2087.3,0.60196038]
[1773450101949,6.277,2087.8,2087.3,0.60196038]
[1773450102751,0.004802,2087.9,2087.3,0.60196038]
[1773450102951,6.276,2087.8,2087.3,0.60196038]
[1773450103945,0.004802,2087.9,2087.3,0.60196038]
[1773450104147,6.276,2087.8,2087.3,0.60196038]
[1773450105252,0.004802,2087.9,2087.3,0.60196038]
[1773450105452,6.276,2087.8,2087.3,0.60196038]
[1773450106155,0.004802,2087.9,2087.5,0.6103646]
[1773450107350,6.276,2088.1,2087.5,0.6103646]
[1773450108252,6.28131289,2088.1,2087.5,0.6103646]
[1773450109149,0.00531289,2088.1,2087.5,0.6103646]
[1773450109752,1.51205654,2088.1,2087.3,0.61175554]
[1773450109953,1.50674365,2087.9,2087.0,0.61175554]
[1773450110549,0.23942,2088.0,2087.0,0.61175554]
[1773450110754,5.75773989,2088.1,2087.0,0.61175554]
[1773450111060,1.50674365,2087.9,2087.0,0.61305511]
[1773450111255,7.25917065,2087.9,2087.0,0.61305511]
[1773450113055,1.50674365,2087.7,2087.0,0.61305511]
[1773450114153,5.752427,2087.9,2087.0,0.61305511]
[1773450114358,6.276,2087.8,2087.0,0.61305511]
[1773450118364,6.276,2087.9,2087.0,0.61305511]
[1773450119064,6.276,2087.8,2087.0,0.61305511]
[1773450120152,6.276,2087.8,2086.7,56.512]
[1773450120153,0.56821311,2087.5,2086.7,0.55900054]
[1773450121159,0.56867157,2087.3,2086.7,0.55900054]
[1773450124961,0.56162649,2087.6,2086.7,0.55900054]
[1773450125263,6.276,2087.5,2086.7,0.55900054]
[1773450125565,9.74256151,2088.0,2086.7,0.55900054]
[1773450125566,0.56162649,2087.9,2086.7,0.55900054]
[1773450125761,0.56162649,2087.9,2086.9,0.55900054]
[1773450126164,0.56157706,2088.0,2086.9,0.55900054]
[1773450126468,6.28131289,2088.1,2087.1,0.55900054]
[1773450126770,6.28131289,2088.1,2087.2,0.55900054]
[1773450127065,6.28131289,2088.1,2087.2,8.06267081]
[1773450127066,0.00531289,2088.1,2087.2,8.06267081]
[1773450127268,0.56601272,2088.1,2087.3,0.55900054]
[1773450132370,0.58118173,2087.9,2087.3,0.55900054]
[1773450136068,0.58118173,2087.8,2087.3,0.55900054]
[1773450137169,6.276,2087.9,2087.3,0.55900054]
[1773450137369,0.58118173,2087.8,2087.3,0.55900054]
[1773450145670,6.86096339,2087.9,2087.3,0.55900054]
[1773450146176,0.58496339,2087.8,2087.3,0.55900054]
[1773450148577,0.58496339,2088.0,2087.3,0.55900054]
[1773450148872,6.86096339,2087.9,2087.3,0.55900054]
[1773450149074,0.59027628,2088.1,2087.3,0.55900054]
[1773450149375,6.276,2088.0,2087.3,0.55900054]
[1773450149876,6.86096339,2088.0,2087.3,0.55900054]
[1773450150474,0.58496339,2087.9,2087.3,0.55900054]
[1773450160285,0.59027628,2088.1,2087.3,0.55900054]
[1773450160485,5.81699918,2088.0,2087.3,0.55900054]
[1773450160783,6.40196257,2088.0,2087.3,0.55900054]
[1773450161883,0.58496339,2088.0,2087.3,0.55900054]
[1773450162384,6.40185608,2088.0,2087.3,0.55900054]
[1773450166486,6.86096339,2088.0,2087.3,0.55900054]
[1773450167686,0.53788254,2087.9,2087.3,0.55900054]
[1773450168781,6.81388254,2088.0,2087.3,0.55900054]
[1773450169484,0.00531289,2088.1,2087.3,0.55900054]
[1773450169883,0.54319543,2088.1,2087.3,0.55900054]
[1773450170787,0.00531289,2088.1,2087.3,0.55900054]
[1773450173284,0.53584872,2088.4,2087.5,0.53883384]
[1773450173889,6.33197713,2088.4,2087.5,0.53883384]
[1773450174388,6.33768903,2088.4,2087.5,0.53883384]
[1773450174590,0.53584872,2088.3,2087.5,0.53883384]
[1773450178290,0.53584872,2088.3,2087.7,0.53883384]
[1773450178494,0.53584872,2088.6,2087.8,0.53883384]
[1773450178991,0.53584872,2088.5,2087.7,0.5437075]
[1773450179294,0.53584872,2088.4,2087.7,0.5437075]
[1773450179491,0.53986561,2088.4,2087.7,0.5437075]
[1773450179689,0.53986561,2088.4,2087.2,0.53883384]
[1773450179690,0.53584872,2087.9,2087.2,0.53883384]
[1773450179884,0.53584872,2087.9,2087.4,0.53883384]
[1773450180489,0.53584872,2088.3,2087.4,0.53883384]
[1773450180684,0.53584872,2088.2,2087.4,0.54369487]
[1773450181092,0.53584872,2088.1,2087.4,0.54369487]
[1773450182896,0.53584872,2087.9,2087.4,0.00486103]
[1773450186598,0.53584872,2087.9,2087.1,41.33883384]
[1773450186797,0.53584872,2087.9,2087.2,0.53883384]
[1773450187602,0.53584872,2087.9,2087.2,0.54441905]
[1773450192005,0.53584872,2088.1,2087.2,0.54441905]
[1773450192306,0.53584872,2088.0,2087.4,0.53883384]
[1773450199302,0.53584872,2088.2,2087.4,0.53883384]
[1773450201207,0.53584872,2088.2,2087.8,0.58890598]
[1773450202510,0.55503248,2088.4,2087.8,0.58890598]
[1773450205907,0.55101559,2088.3,2087.8,0.58890598]
[1773450206510,0.55101559,2088.3,2087.6,0.58890598]
[1773450224235,0.24339689,2088.4,2087.6,0.58890598]
[1773450224424,6.52278581,2088.4,2087.6,0.58890598]
[1773450224629,0.55101559,2088.3,2087.6,0.58890598]
[1773450225631,0.55101559,2088.2,2087.6,0.58890598]
[1773450233835,5.72837333,2088.3,2087.6,0.58890598]
[1773450234633,6.28776274,2088.3,2087.6,0.58890598]
[1773450235033,0.55938941,2088.2,2087.6,0.58890598]
[1773450236831,6.28776274,2088.3,2087.6,0.58890598]
[1773450237235,6.28776274,2088.3,2087.8,0.55238278]
[1773450237435,0.55938941,2088.3,2087.8,0.55238278]
[1773450237738,0.00401689,2088.4,2088.0,0.55238278]
[1773450240438,5.73495483,2088.7,2088.0,0.55238278]
[1773450240633,0.55938941,2088.8,2088.0,0.55238278]
[1773450241539,0.56555797,2088.8,2088.0,0.55238278]
[1773450250446,0.00616856,2088.8,2088.0,0.55238278]
[1773450251437,0.56555797,2088.8,2088.0,0.55238278]
[1773450252537,0.55938941,2089.1,2088.1,0.55238278]
[1773450252944,0.55938941,2089.1,2088.2,40.8]
[1773450253143,0.55938941,2089.1,2088.3,0.55238278]
[1773450253646,0.56306969,2089.1,2088.3,0.55238278]
[1773450259542,0.00368028,2089.1,2088.3,0.55238278]
[1773450266751,0.54271556,2089.1,2088.3,0.55238278]
[1773450268657,0.00368028,2089.1,2088.3,0.55238278]
[1773450268958,0.00368028,2089.1,2088.4,0.53422273]
[1773450270959,0.54271556,2089.1,2088.4,0.53422273]
[1773450274763,0.00368028,2089.1,2088.4,0.53422273]
[1773450275964,0.54271556,2089.1,2088.4,0.53422273]
[1773450276361,0.00368028,2089.1,2088.4,0.53422273]
[1773450276762,0.53903528,2088.9,2088.3,0.53422273]
[1773450277655,0.53903528,2088.9,2088.2,57.24622273]
[1773450278066,0.53903528,2088.9,2088.1,0.53422273]
[1773450278455,0.53903528,2088.9,2088.1,41.33422273]
[1773450278759,0.53903528,2088.9,2088.1,40.8]
[1773450278966,0.53903528,2088.9,2088.2,0.53422273]
[1773450285171,0.53903528,2088.9,2088.1,40.8]
[1773450285361,0.53903528,2088.9,2088.1,41.33422273]
[1773450285767,0.53903528,2088.9,2088.2,0.53422273]
[1773450289968,0.53903528,2088.9,2088.3,0.5545868]
[1773450290572,0.53903528,2088.9,2088.1,40.8]
[1773450290573,0.23936,2088.6,2087.8,3.63851684]
[1773450290764,5.72208092,2088.9,2087.7,0.59276733]
[1773450290960,5.72208092,2088.8,2087.7,0.59276733]
[1773450291166,10.50970418,2089.1,2087.7,0.59276733]
[1773450291366,5.93177777,2089.0,2087.7,0.59276733]
[1773450291771,0.03358326,2088.9,2087.7,0.59276733]
[1773450294571,0.03358326,2088.9,2087.7,2.09755137]
[1773450294773,0.03358326,2088.9,2087.8,0.58182704]
[1773450299573,0.02003402,2088.8,2087.8,0.58182704]
[1773450303472,0.01969594,2088.7,2087.8,0.58182704]
[1773450305676,3.799,2088.8,2087.8,0.58182704]
[1773450306180,3.81857754,2088.8,2087.8,0.58182704]
[1773450306376,5.94238752,2088.7,2087.8,0.58182704]
[1773450307376,5.9605713,2088.7,2087.8,0.58182704]
[1773450307676,0.01717723,2088.6,2087.8,0.58182704]
[1773450308568,5.95999707,2088.6,2087.8,0.58182704]
[1773450309178,0.01717723,2088.6,2087.8,0.58182704]
[1773450309676,3.81617723,2088.6,2087.8,0.58182704]
[1773450309971,3.799,2088.6,2087.8,0.58182704]
[1773450310476,0.01046514,2088.8,2087.8,0.58182704]
[1773450310676,5.95307179,2088.8,2087.8,0.58182704]
[1773450313179,0.01579193,2088.7,2087.8,0.58182704]
[1773450318282,5.95839858,2088.7,2087.8,0.58182704]
[1773450320285,0.01523646,2088.6,2087.8,0.58182704]
[1773450327794,5.95784311,2088.6,2087.8,0.58182704]
[1773450328691,0.01456193,2088.5,2087.8,0.58182704]
[1773450329399,0.01456193,2088.4,2087.8,0.58182704]
[1773450333390,0.00782112,2088.3,2087.8,0.58182704]
[1773450333593,0.00782112,2088.2,2087.6,16.92830262]
[1773450333796,0.00782112,2088.2,2087.7,0.58940438]
[1773450345512,3.80682112,2088.2,2087.7,0.58940438]
[1773450349619,3.799,2088.2,2087.7,0.58940438]
[1773450355714,0.2306605,2088.7,2087.9,0.57742786]
[1773450355921,6.48242137,2088.8,2087.9,0.57742786]
[1773450357718,0.23933,2088.9,2088.1,0.57742786]
[1773450357719,0.77299134,2088.9,2088.1,0.57742786]
[1773450358224,6.72199847,2088.9,2088.1,0.57742786]
[1773450359127,0.53366134,2088.8,2088.1,0.57742786]
[1773450360324,0.53366134,2088.7,2088.1,0.57742786]
[1773450360626,0.53366134,2088.6,2088.0,0.57742786]
[1773450361131,0.53366134,2088.3,2087.8,0.57742786]
[1773450362626,0.53366134,2088.3,2087.7,0.57742786]
[1773450372731,6.47997512,2088.4,2087.7,0.57742786]
[1773450373132,0.53366134,2088.4,2087.7,0.57742786]
[1773450375333,5.94672756,2088.6,2087.7,0.57742786]
[1773450375636,0.53366134,2088.5,2087.7,0.57742786]
[1773450377239,0.53366134,2088.5,2087.8,0.57742786]
[1773450381442,0.56443701,2088.4,2087.8,0.57742786]
[1773450381642,0.56443701,2088.3,2087.8,0.57742786]
[1773450381844,6.51116457,2088.5,2087.8,0.57742786]
[1773450382038,0.56443701,2088.5,2087.8,0.57742786]
[1773450382743,6.51176599,2088.6,2087.8,0.57742786]
[1773450382945,0.56443701,2088.6,2087.8,0.57742786]
[1773450387652,0.56443701,2088.5,2087.8,0.57742786]
[1773450388157,0.56443701,2088.4,2087.8,0.57742786]
[1773450388451,3.9947239,2088.7,2087.8,0.57742786]
[1773450388452,0.56443701,2088.3,2087.8,0.57742786]
[1773450389856,5.94818963,2088.5,2087.8,0.57742786]
[1773450389857,0.56443701,2088.4,2087.8,0.57742786]
[1773450390546,6.51262664,2088.4,2087.8,0.57742786]
[1773450390752,0.56443701,2088.4,2087.8,0.57742786]
[1773450391858,6.51426002,2088.4,2087.8,0.57742786]
[1773450392057,0.56443701,2088.4,2087.8,0.57742786]
[1773450393260,6.5155278,2088.4,2087.8,0.57742786]
[1773450393459,0.56443701,2088.4,2087.8,0.57742786]
[1773450394058,6.51555719,2088.4,2087.8,0.57742786]
[1773450394257,0.56443701,2088.4,2087.8,0.57742786]
[1773450396764,0.56443701,2088.4,2087.6,57.139]
[1773450396765,0.56443701,2088.4,2087.7,0.56623855]
[1773450397559,0.56443701,2088.3,2087.7,0.56623855]
[1773450408961,0.56443701,2088.3,2087.6,16.339]
[1773450409161,0.56443701,2088.3,2087.6,16.90153459]
[1773450411869,0.58191586,2088.2,2087.6,16.90153459]
[1773450414167,0.58191586,2088.2,2087.7,0.58179076]
[1773450414565,0.58191586,2088.2,2087.6,16.92079076]
[1773450415564,0.58191586,2088.2,2087.4,0.58179076]
[1773450419370,0.58191586,2088.1,2087.4,0.58179076]
[1773450419968,0.58191586,2088.1,2087.3,0.58179076]
[1773450420371,0.58191586,2088.0,2087.3,0.58179076]
[1773450420572,0.58191586,2088.0,2087.2,0.00558521]
[1773450420774,0.58191586,2088.0,2087.2,0.58737597]
[1773450421768,0.58191586,2087.9,2087.2,0.58737597]
[1773450421966,0.58191586,2087.9,2087.2,0.00558521]
[1773450423675,0.58191586,2087.6,2087.2,0.00558521]
[1773450423876,0.5865872,2087.6,2087.1,0.58179076]
[1773450424773,0.5865872,2087.6,2087.1,0.58663584]
[1773450427773,0.5865872,2087.6,2087.1,0.00484508]
[1773450428974,0.5865872,2087.6,2086.9,17.67579076]
[1773450429579,0.5865872,2087.6,2087.0,0.58179076]
[1773450429877,0.5865872,2087.6,2087.0,0.58673238]
[1773450431779,0.58191586,2087.2,2086.7,0.58179076]
[1773450432279,0.58191586,2087.4,2086.7,0.58179076]
[1773450432776,0.58191586,2087.4,2086.7,0.58735057]
[1773450433176,0.5865872,2087.6,2086.7,0.58735057]
[1773450433383,0.5865872,2087.6,2086.8,0.58179076]
[1773450433782,0.00467134,2087.6,2087.0,0.58179076]
[1773450437483,0.58191586,2088.1,2087.2,0.58179076]
[1773450438384,0.58685338,2088.1,2087.2,0.58179076]
[1773450440787,0.58191586,2088.0,2087.2,0.58179076]
[1773450440990,0.58191586,2088.0,2087.1,0.55794589]
[1773450441290,0.58692478,2087.9,2087.1,0.55794589]
[1773450446186,0.5918623,2088.1,2087.4,0.55794589]
[1773450446389,0.5918623,2088.1,2087.6,0.55794589]
[1773450446993,0.00493752,2088.1,2087.6,0.55794589]
[1773450448491,0.5918623,2088.1,2087.6,0.55794589]
[1773450450291,0.00493752,2088.1,2087.6,0.55794589]
[1773450454503,0.58692478,2088.0,2087.2,0.55794589]
[1773450454700,0.58692478,2087.8,2087.2,0.55794589]
[1773450460509,0.58692478,2088.0,2087.2,0.55794589]
[1773450467006,5.92566989,2088.1,2087.3,0.58898445]
[1773450467206,0.00493752,2088.1,2087.3,0.58898445]
[1773450467506,0.58349088,2088.1,2087.3,0.58898445]
[1773450468912,0.58349088,2088.1,2087.5,0.58898445]
[1773450469510,0.00493752,2088.1,2087.5,0.58898445]
[1773450478310,0.00493752,2088.1,2087.7,0.58048692]
[1773450479619,0.56858529,2088.1,2087.7,0.58048692]
[1773450479920,0.56364777,2088.0,2087.0,0.10170097]
[1773450480313,0.56364777,2087.8,2087.0,0.10170097]
[1773450504633,0.54824068,2088.0,2087.3,0.0974539]
[1773450506230,0.54824068,2088.0,2087.4,0.10054501]
[1773450507528,0.00493752,2088.1,2087.4,0.10054501]
[1773450507734,0.5531782,2088.1,2087.4,0.10054501]
[1773450509736,0.5531782,2088.1,2087.4,0.10171977]
[1773450509938,0.5531782,2088.1,2087.5,0.1022241]
[1773450510134,0.54824068,2088.7,2087.5,0.1022241]
[1773450510334,0.54824068,2088.6,2087.6,0.58511685]
[1773450510733,0.54824068,2088.6,2087.7,41.38511685]
[1773450510935,0.54824068,2088.6,2087.8,0.58511685]
[1773450511137,0.5539118,2088.6,2087.8,0.58511685]
[1773450516038,0.5539118,2088.6,2088.0,0.58511685]
[1773450517139,0.5539118,2088.6,2087.9,17.193]
[1773450517140,0.5539118,2088.6,2087.9,17.77811685]
[1773450517342,0.5539118,2088.6,2088.0,0.58511685]
[1773450538149,0.55275042,2088.8,2088.0,0.58511685]
[1773450538353,0.55275042,2089.0,2088.2,0.547178]
[1773450539155,0.00506203,2089.0,2088.2,0.55282463]
[1773450540357,0.55275042,2089.3,2088.5,0.547178]
[1773450540557,0.55275042,2089.3,2088.7,0.547178]
[1773450541555,0.55712537,2089.3,2088.7,0.547178]
[1773450545558,0.55712537,2089.3,2088.8,0.547178]
[1773450546162,0.55275042,2089.2,2088.8,0.547178]
[1773450547156,0.55865149,2089.2,2088.8,0.547178]
[1773450549460,0.55865149,2089.2,2088.7,42.85070862]
[1773450549659,0.55865149,2089.2,2088.7,41.347178]
[1773450550161,0.55865149,2089.2,2088.7,40.8]
[1773450550463,0.55865149,2089.2,2088.6,17.403]
[1773450550857,0.55865149,2089.2,2088.6,58.750178]
[1773450551962,0.55865149,2089.2,2088.6,58.203]
[1773450553262,0.55865149,2089.2,2088.6,58.750178]
[1773450556666,0.55865149,2089.2,2088.7,0.547178]
[1773450559572,0.55275042,2089.6,2089.0,0.547178]
[1773450560668,0.55644132,2089.6,2089.0,0.547178]
[1773450562270,0.55644132,2089.6,2089.0,18.153178]
[1773450562666,0.55644132,2089.6,2089.1,0.541525]
[1773450570367,0.55644132,2089.6,2089.2,0.541525]
[1773450580277,0.0036909,2089.6,2089.2,0.541525]
[1773450580481,0.54494799,2089.7,2089.2,0.541525]
[1773450581285,0.53904562,2089.7,2089.2,0.541525]
[1773450581486,0.54263747,2089.7,2089.2,0.541525]
[1773450583382,0.00359185,2089.7,2089.2,0.541525]
[1773450583778,0.54853984,2089.7,2089.2,0.541525]
[1773450583982,0.54853984,2089.7,2089.1,0.541525]
[1773450588094,0.54853984,2089.7,2089.2,0.53779605]
[1773450593299,0.00359185,2089.7,2089.2,0.53779605]
[1773450594003,0.59120018,2089.7,2089.2,0.53779605]
[1773450595103,0.00359185,2089.7,2089.2,0.53779605]
[1773450597604,0.59120018,2089.7,2089.2,0.53779605]
[1773450600503,0.58760833,2089.3,2088.5,0.56599561]
[1773450600701,6.53711503,2089.3,2088.7,0.56599561]
[1773450600899,0.58760833,2089.3,2088.7,0.56599561]
[1773450601406,0.58760833,2089.3,2088.6,41.36599561]
[1773450601610,0.58760833,2089.3,2088.7,0.56599561]
[1773450604411,0.59120018,2089.7,2089.1,0.56599561]
[1773450604905,0.00359185,2089.7,2089.3,0.56599561]
[1773450605705,0.59120018,2089.7,2089.3,0.56599561]
[1773450611408,0.00359185,2089.7,2089.3,0.56599561]
[1773450611610,6.52901707,2090.1,2089.3,0.56599561]
[1773450611810,0.58760833,2090.1,2089.3,0.56599561]
[1773450612713,0.59113873,2090.1,2089.3,0.56599561]
[1773450620511,0.0035304,2090.1,2089.3,0.56599561]
[1773450620719,0.0035304,2090.1,2089.4,0.56599561]
[1773450621711,0.58689867,2090.1,2089.4,0.56599561]
[1773450635821,0.58689867,2090.1,2089.1,0.55504517]
[1773450636323,0.58336827,2090.0,2089.1,0.55504517]
[1773450636724,0.58336827,2089.9,2089.1,0.55504517]
[1773450637028,0.58336827,2089.6,2088.5,41.35504517]
[1773450637231,0.58336827,2089.4,2088.6,0.55504517]
[1773450648136,0.56357079,2089.3,2088.6,0.55504517]
[1773450652539,0.56357079,2089.3,2088.5,41.33674425]
[1773450657543,0.56357079,2089.3,2088.6,0.53674425]
[1773450660448,0.57056367,2089.1,2088.2,0.00564663]
[1773450661142,0.57056367,2089.0,2088.2,0.00564663]
[1773450661643,0.57056367,2089.0,2087.7,0.53674425]
[1773450661644,0.57056367,2088.6,2087.7,0.53674425]
[1773450662242,0.57056367,2088.5,2087.7,0.53674425]
[1773450662742,0.5750123,2088.5,2087.7,0.5421292]
[1773450665555,0.5750123,2088.5,2087.4,18.46374425]
[1773450665741,0.57056367,2088.4,2087.4,18.46374425]
[1773450666048,0.57056367,2088.4,2087.5,0.53674425]
[1773450666552,0.57056367,2088.4,2087.5,0.54126835]
[1773450667647,0.57056367,2088.2,2087.5,0.54126835]
[1773450669650,0.57056367,2088.2,2087.6,0.53674425]
[1773450688961,0.57056367,2088.2,2087.5,0.0045241]
[1773450689157,0.57161637,2088.0,2087.0,18.78129882]
[1773450689356,0.57161637,2087.8,2087.0,0.54029882]
[1773450690062,0.57161637,2087.8,2087.0,0.54627859]
[1773450690261,0.57161637,2087.8,2087.0,0.00597977]
[1773450690262,6.52426106,2087.8,2087.0,0.00597977]
[1773450690561,0.57161637,2087.7,2087.0,0.00597977]
[1773450691657,0.57161637,2087.6,2086.8,40.8]
[1773450691863,0.57161637,2087.5,2086.7,0.53902622]
[1773450692861,0.57161637,2087.5,2086.7,0.54450134]
[1773450693353,0.57161637,2087.5,2086.8,0.55303276]
[1773450695057,0.57161637,2087.5,2086.7,0.55850788]
[1773450695966,0.57161637,2087.4,2086.4,0.55303276]
[1773450696266,0.57161637,2087.3,2086.4,0.55303276]
[1773450696461,0.57161637,2087.3,2086.5,41.35303276]
[1773450696961,0.57161637,2087.3,2086.5,0.55792585]
[1773450704671,2.07744485,2087.3,2086.5,0.00489309]
[1773450704865,6.51836416,2087.4,2086.6,0.55303276]
[1773450704866,0.57161637,2087.2,2086.6,0.55303276]
[1773450709073,0.57161637,2087.2,2086.5,0.00489309]
[1773450709274,0.57161637,2087.2,2086.5,0.54770726]
[1773450709977,0.57161637,2087.2,2086.6,0.54265398]
[1773450711975,0.57161637,2087.2,2086.5,0.00489309]
[1773450712176,0.56004865,2086.8,2085.8,0.53592836]
[1773450712371,0.56004865,2086.6,2085.8,0.53592836]
[1773450712573,0.56004865,2086.6,2085.6,1.83826866]
[1773450712876,0.56004865,2086.6,2085.7,0.53592836]
[1773450713077,0.56369658,2086.6,2085.7,0.54150694]
[1773450714076,0.56369658,2086.6,2086.0,0.53678049]
[1773450714378,0.00364793,2086.6,2086.2,0.53678049]
[1773450714773,0.56004865,2086.5,2086.0,0.53678049]
[1773450720483,0.56369658,2086.6,2086.0,0.53678049]
[1773450720779,0.00364793,2086.6,2086.2,0.53512696]
[1773450721378,0.00364793,2086.6,2085.7,0.00557858]
[1773450721379,0.56369658,2086.6,2086.0,0.53508995]
[1773450723083,0.00364793,2086.6,2086.2,0.50935402]
[1773450723283,0.56004865,2087.5,2086.6,0.58507691]
[1773450723476,0.56004865,2087.4,2086.8,0.58507691]
[1773450724382,0.56412505,2087.4,2086.8,0.58507691]
[1773450725480,0.56004865,2086.9,2086.3,0.58507691]
[1773450729182,5.95282321,2087.3,2086.3,0.58507691]
[1773450729385,0.56004865,2087.3,2086.3,0.58507691]
[1773450733486,0.56004865,2087.2,2086.3,0.58507691]
[1773450736391,0.56004865,2087.1,2086.3,0.58507691]
[1773450737188,0.56004865,2087.3,2086.3,0.58507691]
[1773450737385,0.56004865,2087.3,2086.4,0.58507691]
[1773450737591,0.0040764,2087.4,2086.4,0.58507691]
[1773450738187,0.56412505,2087.4,2086.4,0.58507691]
[1773450739595,0.0040764,2087.4,2086.4,0.58507691]
[1773450743204,0.0040764,2087.4,2086.6,0.59151711]
[1773450745206,0.5437306,2087.4,2086.6,0.59151711]
[1773450753006,0.0040764,2087.4,2086.6,0.59151711]
[1773450757713,0.5396542,2087.5,2086.6,0.59151711]
[1773450758808,0.5396542,2087.7,2086.9,0.59151711]
[1773450759410,5.9482099,2087.8,2086.9,0.59151711]
[1773450759611,0.23944,2087.9,2086.9,0.59151711]
[1773450759919,0.78441025,2087.9,2086.9,0.59151711]
[1773450760106,0.5396542,2087.8,2086.9,0.59151711]
[1773450761208,0.5396542,2087.8,2087.1,0.59151711]
[1773450766517,0.5396542,2087.8,2086.8,0.53839026]
[1773450766711,0.58829405,2087.7,2086.8,0.53839026]
[1773450768818,0.58829405,2087.6,2086.8,0.53839026]
[1773450787028,0.55582807,2087.4,2086.6,0.5348712]
[1773450787329,0.55582807,2087.0,2086.4,0.5348712]
[1773450787635,0.55582807,2087.2,2086.4,0.5348712]
[1773450797035,0.55582807,2087.2,2086.6,0.5348712]
[1773450808137,6.50261052,2087.4,2086.6,0.5348712]
[1773450808337,6.50261052,2087.4,2086.5,1.50699076]
[1773450808338,5.95185129,2087.3,2086.8,0.55317768]
[1773450808538,0.55075923,2087.4,2086.8,0.55317768]
[1773450809837,0.55075923,2087.4,2086.3,60.45699076]
[1773450810040,0.55075923,2087.3,2086.6,0.55317768]
[1773450812238,0.55075923,2087.0,2086.4,0.55317768]
[1773450813640,0.55075923,2087.0,2086.2,0.55317768]
[1773450813838,0.55075923,2087.0,2086.3,0.55317768]
[1773450815438,0.55075923,2086.8,2086.2,0.55317768]
[1773450818140,0.55075923,2086.9,2086.2,0.55317768]
[1773450818349,0.55075923,2087.1,2086.3,0.55317768]
[1773450818944,0.55075923,2087.0,2086.3,0.55317768]
[1773450820854,0.55075923,2087.0,2086.4,0.55317768]
[1773450822658,0.55075923,2086.9,2086.4,0.55317768]
[1773450824362,0.55075923,2087.1,2086.4,0.55317768]
[1773450828867,0.58336629,2087.0,2086.2,0.55968201]
[1773450829068,0.58336629,2086.9,2086.2,0.55968201]
[1773450849486,0.5419916,2086.8,2086.2,0.55968201]
[1773450861190,0.54287336,2087.1,2086.3,0.57896415]
[1773450861386,6.50394989,2087.2,2086.3,0.57896415]
[1773450861591,5.96107653,2087.1,2086.3,0.57896415]
[1773450861994,6.50394989,2087.1,2086.3,0.57896415]
[1773450862195,0.54287336,2087.1,2086.3,0.57896415]
[1773450862397,0.54287336,2087.1,2086.4,18.608]
[1773450862697,0.54287336,2087.1,2086.5,0.57896415]
[1773450864300,6.50292305,2087.2,2086.5,0.57896415]
[1773450864602,0.54287336,2087.2,2086.5,0.57896415]
[1773450865296,5.95830363,2087.4,2086.5,0.57896415]
[1773450865501,0.54287336,2087.5,2086.6,0.57896415]
[1773450866097,0.54287336,2087.7,2086.6,0.57896415]
[1773450878515,0.00531605,2087.9,2087.2,0.57896415]
[1773450878721,0.00531605,2087.9,2087.3,0.57896415]
[1773450879017,0.54818941,2087.9,2087.3,0.57896415]
[1773450891727,0.54818941,2087.9,2087.2,59.46119633]
[1773450892231,0.54818941,2087.9,2087.2,60.02755039]
[1773450892430,0.54818941,2087.9,2087.3,0.56635406]
[1773450897233,0.54818941,2087.9,2087.2,19.22755039]
[1773450899735,0.54818941,2087.9,2087.3,0.56635406]
[1773450900929,5.93706565,2088.2,2087.3,0.56635406]
[1773450901131,0.5676895,2088.4,2087.5,0.56635406]
[1773450901338,6.50548916,2088.4,2087.5,0.56635406]
[1773450901635,6.50548916,2088.4,2087.6,0.56635406]
[1773450901835,0.5676895,2088.3,2087.6,0.56635406]
[1773450902035,0.57282997,2088.3,2087.6,0.56635406]
[1773450902539,0.57282997,2088.3,2087.7,0.56635406]
[1773450905536,0.5676895,2088.5,2087.8,0.56635406]
[1773450906535,0.57247173,2088.5,2087.8,0.56635406]
[1773450911743,0.57247173,2088.5,2087.9,0.56635406]
[1773450919445,0.57247173,2088.5,2088.1,0.56635406]